[Event "Early-Titled-Tuesday-Blitz-February-20-2024"]
[Site "Chess.com"]
[Date "2024.02.20"]
[Round "2"]
[White "IMRosen"]
[Black "DenLaz"]
[Result "1-0"]
[WhiteElo "2666"]
[BlackElo "3033"]
[TimeControl "180+1"]
[EndTime "8:15:08 PST"]
[Termination "IMRosen won on time"]

1. d4 {[%clk 0:03:00.9]} 1... Nf6 {[%clk 0:03:00.7]} 2. Bf4 {[%clk 0:03:00.6]}
2... d5 {[%clk 0:03:01.3]} 3. e3 {[%clk 0:03:00.3]} 3... c5 {[%clk 0:03:01.8]}
4. Nf3 {[%clk 0:03:00.6]} 4... Nc6 {[%clk 0:03:02]} 5. Nbd2 {[%clk 0:03:01.2]}
5... Bg4 {[%clk 0:03:02.2]} 6. c3 {[%clk 0:03:01.9]} 6... e6 {[%clk 0:03:02.3]}
7. Qa4 {[%clk 0:03:00.3]} 7... Bxf3 {[%clk 0:03:00.5]} 8. Nxf3 {[%clk
0:03:01.2]} 8... a6 {[%clk 0:02:58.8]} 9. Ne5 {[%clk 0:03:01.3]} 9... Rc8 {[%clk
0:02:59.2]} 10. Nxc6 {[%clk 0:02:55.5]} 10... Qd7 {[%clk 0:02:59.6]} 11. Be5
{[%clk 0:02:56.2]} 11... Rxc6 {[%clk 0:02:34.2]} 12. Bxf6 {[%clk 0:02:56]} 12...
gxf6 {[%clk 0:02:35.1]} 13. g3 {[%clk 0:02:56.8]} 13... f5 {[%clk 0:02:30.6]}
14. Bg2 {[%clk 0:02:50.4]} 14... c4 {[%clk 0:02:28.9]} 15. Qd1 {[%clk
0:02:47.6]} 15... Bd6 {[%clk 0:02:17.1]} 16. a4 {[%clk 0:02:40.4]} 16... Rb6
{[%clk 0:02:15.1]} 17. Ra2 {[%clk 0:02:37]} 17... Kd8 {[%clk 0:01:13.2]} 18. Qh5
{[%clk 0:02:29.9]} 18... Kc8 {[%clk 0:01:09.8]} 19. O-O {[%clk 0:02:30.5]} 19...
Kb8 {[%clk 0:01:08.2]} 20. Re1 {[%clk 0:02:23.6]} 20... Bc7 {[%clk 0:01:04.1]}
21. f3 {[%clk 0:02:11.5]} 1-0

[Event "Early-Titled-Tuesday-Blitz-February-20-2024"]
[Site "Chess.com"]
[Date "2024.02.20"]
[Round "2"]
[White "EsmeraldasAnderson03"]
[Black "Arystanner"]
[Result "0-1"]
[WhiteElo "2546"]
[BlackElo "2777"]
[TimeControl "180+1"]
[EndTime "8:15:10 PST"]
[Termination "Arystanner won by resignation"]

1. d4 {[%clk 0:03:00.9]} 1... Nf6 {[%clk 0:02:59.9]} 2. c4 {[%clk 0:03:00.2]}
2... e6 {[%clk 0:03:00.5]} 3. Nc3 {[%clk 0:03:00.5]} 3... d5 {[%clk 0:03:01.2]}
4. cxd5 {[%clk 0:03:00.3]} 4... exd5 {[%clk 0:03:02.1]} 5. Nf3 {[%clk
0:03:00.2]} 5... c6 {[%clk 0:02:58.1]} 6. Bg5 {[%clk 0:03:00.7]} 6... Bd6 {[%clk
0:02:58.4]} 7. Qc2 {[%clk 0:03:00.6]} 7... O-O {[%clk 0:02:58.8]} 8. e3 {[%clk
0:03:01]} 8... Be6 {[%clk 0:02:59.5]} 9. Bd3 {[%clk 0:03:01.4]} 9... h6 {[%clk
0:02:58.8]} 10. Bh4 {[%clk 0:03:01.4]} 10... Nbd7 {[%clk 0:02:59.1]} 11. O-O
{[%clk 0:03:01.5]} 11... Qc7 {[%clk 0:02:59.2]} 12. Rab1 {[%clk 0:03:01.1]}
12... Bg4 {[%clk 0:02:58.6]} 13. Bg3 {[%clk 0:02:59.1]} 13... Bxg3 {[%clk
0:02:58.6]} 14. hxg3 {[%clk 0:03:00]} 14... a5 {[%clk 0:02:59.1]} 15. Bf5 {[%clk
0:02:47.9]} 15... Bxf5 {[%clk 0:02:55.2]} 16. Qxf5 {[%clk 0:02:48.8]} 16... Rfe8
{[%clk 0:02:54.5]} 17. Rfc1 {[%clk 0:02:47.1]} 17... Qd6 {[%clk 0:02:54.6]} 18.
a3 {[%clk 0:02:46.1]} 18... g6 {[%clk 0:02:50.5]} 19. Qf4 {[%clk 0:02:44.3]}
19... Qf8 {[%clk 0:02:35.9]} 20. Qc7 {[%clk 0:02:39.3]} 20... Reb8 {[%clk
0:02:19.5]} 21. Na4 {[%clk 0:02:34]} 21... Qd8 {[%clk 0:02:11.4]} 22. Qf4 {[%clk
0:02:06.6]} 22... Kg7 {[%clk 0:02:09.7]} 23. Nc5 {[%clk 0:02:05.1]} 23... Nxc5
{[%clk 0:02:08.5]} 24. Rxc5 {[%clk 0:02:06]} 24... Ne4 {[%clk 0:02:03.5]} 25.
Rc2 {[%clk 0:02:05.7]} 25... Qe7 {[%clk 0:01:55.2]} 26. Ne5 {[%clk 0:02:04.9]}
26... Re8 {[%clk 0:01:43.7]} 27. Nd3 {[%clk 0:01:52]} 27... h5 {[%clk
0:01:39.8]} 28. Qe5+ {[%clk 0:01:49.8]} 28... Qxe5 {[%clk 0:01:38.5]} 29. Nxe5
{[%clk 0:01:50.7]} 29... Rh8 {[%clk 0:01:33]} 30. a4 {[%clk 0:01:47.1]} 30... h4
{[%clk 0:01:27.5]} 31. gxh4 {[%clk 0:01:21.8]} 31... Rxh4 {[%clk 0:01:25.9]} 32.
f3 {[%clk 0:01:21.6]} 32... Rah8 {[%clk 0:01:23.1]} 33. fxe4 {[%clk 0:01:19.9]}
33... Rh1+ {[%clk 0:01:23.4]} 34. Kf2 {[%clk 0:01:20.6]} 34... Rxb1 {[%clk
0:01:24.3]} 35. exd5 {[%clk 0:01:21.2]} 35... cxd5 {[%clk 0:01:24.5]} 36. Nc4
{[%clk 0:01:21.8]} 36... dxc4 {[%clk 0:01:24.3]} 0-1

[Event "Early-Titled-Tuesday-Blitz-February-20-2024"]
[Site "Chess.com"]
[Date "2024.02.20"]
[Round "2"]
[White "seasidesunset"]
[Black "Tocras"]
[Result "0-1"]
[WhiteElo "2247"]
[BlackElo "2699"]
[TimeControl "180+1"]
[EndTime "8:15:12 PST"]
[Termination "Tocras won by resignation"]

1. e4 {[%clk 0:03:00.9]} 1... c5 {[%clk 0:02:59]} 2. c4 {[%clk 0:02:58.3]} 2...
Nc6 {[%clk 0:02:59]} 3. Nc3 {[%clk 0:02:58.6]} 3... g6 {[%clk 0:02:50.8]} 4. g3
{[%clk 0:02:57.7]} 4... Bg7 {[%clk 0:02:50.7]} 5. Bg2 {[%clk 0:02:57.9]} 5... d6
{[%clk 0:02:51.5]} 6. Nge2 {[%clk 0:02:58.6]} 6... Bg4 {[%clk 0:02:48]} 7. O-O
{[%clk 0:02:57.6]} 7... Nf6 {[%clk 0:02:31.2]} 8. d3 {[%clk 0:02:48.4]} 8... O-O
{[%clk 0:02:28.1]} 9. h3 {[%clk 0:02:48.5]} 9... Bxe2 {[%clk 0:02:27.8]} 10.
Nxe2 {[%clk 0:02:49]} 10... Rb8 {[%clk 0:02:25.5]} 11. f4 {[%clk 0:02:47.7]}
11... Nd7 {[%clk 0:02:22.8]} 12. a4 {[%clk 0:02:44.3]} 12... a6 {[%clk
0:02:20.7]} 13. g4 {[%clk 0:02:39]} 13... b5 {[%clk 0:02:16.4]} 14. axb5 {[%clk
0:02:18.9]} 14... axb5 {[%clk 0:02:17.3]} 15. cxb5 {[%clk 0:02:19.6]} 15... Rxb5
{[%clk 0:02:12.2]} 16. Nc3 {[%clk 0:02:06.5]} 16... Rb8 {[%clk 0:02:08.1]} 17.
Nd5 {[%clk 0:01:42]} 17... e6 {[%clk 0:02:01.9]} 18. Ne3 {[%clk 0:01:38.8]}
18... Nd4 {[%clk 0:01:56.9]} 19. f5 {[%clk 0:01:34.6]} 19... Nb3 {[%clk
0:01:39.2]} 20. Ra2 {[%clk 0:01:32.2]} 20... Bd4 {[%clk 0:01:26]} 21. Kh1 {[%clk
0:01:29.9]} 21... Nxc1 {[%clk 0:01:18.6]} 22. Qxc1 {[%clk 0:01:28.8]} 22... Ne5
{[%clk 0:01:18.5]} 23. Qd2 {[%clk 0:01:13.3]} 23... Qg5 {[%clk 0:01:12.9]} 24.
Rd1 {[%clk 0:01:05.6]} 24... Bxe3 {[%clk 0:01:09.9]} 0-1

[Event "Early-Titled-Tuesday-Blitz-February-20-2024"]
[Site "Chess.com"]
[Date "2024.02.20"]
[Round "2"]
[White "inagreV"]
[Black "SahibSinghKnight"]
[Result "1-0"]
[WhiteElo "2364"]
[BlackElo "2574"]
[TimeControl "180+1"]
[EndTime "8:15:13 PST"]
[Termination "inagreV won by resignation"]

1. e4 {[%clk 0:03:00.9]} 1... e6 {[%clk 0:02:57.5]} 2. d4 {[%clk 0:02:58.1]}
2... d5 {[%clk 0:02:58.1]} 3. exd5 {[%clk 0:02:58.2]} 3... exd5 {[%clk
0:02:58.2]} 4. Nf3 {[%clk 0:02:59.1]} 4... Bd6 {[%clk 0:02:58.6]} 5. c4 {[%clk
0:02:58.8]} 5... Nf6 {[%clk 0:02:59.2]} 6. c5 {[%clk 0:02:58.6]} 6... O-O {[%clk
0:02:59.8]} 7. cxd6 {[%clk 0:02:58.3]} 7... Qxd6 {[%clk 0:02:29.1]} 8. Be2
{[%clk 0:02:52.9]} 8... Re8 {[%clk 0:02:21]} 9. Nc3 {[%clk 0:02:51.3]} 9... Nc6
{[%clk 0:01:52.8]} 10. O-O {[%clk 0:02:48.1]} 10... a6 {[%clk 0:01:45.9]} 11. h3
{[%clk 0:02:41.8]} 11... h6 {[%clk 0:01:41.4]} 12. Re1 {[%clk 0:02:34.9]} 12...
Bf5 {[%clk 0:01:34.1]} 13. Be3 {[%clk 0:02:32.4]} 13... b5 {[%clk 0:00:29.2]}
14. Rc1 {[%clk 0:02:30]} 14... g5 {[%clk 0:00:20.1]} 15. Qd2 {[%clk 0:02:26.1]}
15... Bg6 {[%clk 0:00:15.3]} 16. Ne5 {[%clk 0:02:06.5]} 16... Nxe5 {[%clk
0:00:08.5]} 17. dxe5 {[%clk 0:02:07.4]} 17... Rxe5 {[%clk 0:00:08.9]} 18. Bd4
{[%clk 0:02:07.8]} 18... Ne4 {[%clk 0:00:08.1]} 19. Bxe5 {[%clk 0:02:05.2]}
19... Qxe5 {[%clk 0:00:06.9]} 20. Qxd5 {[%clk 0:02:03.4]} 20... Qf4 {[%clk
0:00:03.2]} 21. Nxe4 {[%clk 0:02:02.7]} 1-0

[Event "Early-Titled-Tuesday-Blitz-February-20-2024"]
[Site "Chess.com"]
[Date "2024.02.20"]
[Round "2"]
[White "Schachmalanders"]
[Black "Ishowmoves57"]
[Result "1-0"]
[WhiteElo "2458"]
[BlackElo "2140"]
[TimeControl "180+1"]
[EndTime "8:15:21 PST"]
[Termination "Schachmalanders won by checkmate"]

1. e4 {[%clk 0:03:00.9]} 1... c5 {[%clk 0:02:55.1]} 2. Nc3 {[%clk 0:02:55.7]}
2... Nc6 {[%clk 0:02:54.4]} 3. g3 {[%clk 0:02:56.2]} 3... g6 {[%clk 0:02:52.5]}
4. Bg2 {[%clk 0:02:56.4]} 4... Bg7 {[%clk 0:02:53.2]} 5. Nge2 {[%clk 0:02:57]}
5... e5 {[%clk 0:02:53.2]} 6. d3 {[%clk 0:02:57.2]} 6... Nge7 {[%clk 0:02:53.5]}
7. Be3 {[%clk 0:02:57.5]} 7... d6 {[%clk 0:02:53]} 8. Qd2 {[%clk 0:02:58]} 8...
Nd4 {[%clk 0:02:50.9]} 9. O-O-O {[%clk 0:02:57]} 9... h6 {[%clk 0:02:42.7]} 10.
Nd5 {[%clk 0:02:51.6]} 10... Nxd5 {[%clk 0:02:41.1]} 11. exd5 {[%clk 0:02:51.4]}
11... b5 {[%clk 0:02:39.6]} 12. f4 {[%clk 0:02:48]} 12... Nf5 {[%clk 0:01:41.7]}
13. Bf2 {[%clk 0:02:43.8]} 13... b4 {[%clk 0:01:35.9]} 14. Kb1 {[%clk
0:02:40.8]} 14... Qa5 {[%clk 0:01:27.6]} 15. fxe5 {[%clk 0:02:36.9]} 15... Bxe5
{[%clk 0:01:27.3]} 16. g4 {[%clk 0:02:35.5]} 16... Nd4 {[%clk 0:01:14.4]} 17.
Nxd4 {[%clk 0:02:34.3]} 17... cxd4 {[%clk 0:01:14.6]} 18. Rde1 {[%clk
0:02:33.4]} 18... Kd8 {[%clk 0:00:50.3]} 19. Re4 {[%clk 0:02:23]} 19... Bb7
{[%clk 0:00:46.7]} 20. Rhe1 {[%clk 0:02:15.2]} 20... Bxd5 {[%clk 0:00:44.6]} 21.
b3 {[%clk 0:02:12.2]} 21... Bxe4 {[%clk 0:00:41]} 22. Rxe4 {[%clk 0:02:08.8]}
22... Rc8 {[%clk 0:00:39]} 23. Bxd4 {[%clk 0:02:08.7]} 23... Bxd4 {[%clk
0:00:27.5]} 24. Rxd4 {[%clk 0:02:09.6]} 24... Qc5 {[%clk 0:00:22.5]} 25. Qf2
{[%clk 0:02:01.5]} 25... Re8 {[%clk 0:00:20.5]} 26. Qf6+ {[%clk 0:01:57.7]}
26... Re7 {[%clk 0:00:19.6]} 27. Rxd6+ {[%clk 0:01:53.4]} 27... Ke8 {[%clk
0:00:18.3]} 28. Qh8# {[%clk 0:01:53.3]} 1-0

[Event "Early-Titled-Tuesday-Blitz-February-20-2024"]
[Site "Chess.com"]
[Date "2024.02.20"]
[Round "2"]
[White "carloseduar100"]
[Black "m_ezat"]
[Result "1-0"]
[WhiteElo "2337"]
[BlackElo "2525"]
[TimeControl "180+1"]
[EndTime "8:15:30 PST"]
[Termination "carloseduar100 won by checkmate"]

1. e4 {[%clk 0:02:56.3]} 1... e5 {[%clk 0:02:59.4]} 2. Nf3 {[%clk 0:02:56.6]}
2... Nc6 {[%clk 0:02:59.7]} 3. Nc3 {[%clk 0:02:57.5]} 3... Nf6 {[%clk
0:02:59.5]} 4. Nxe5 {[%clk 0:02:58.2]} 4... Nxe5 {[%clk 0:02:59]} 5. d4 {[%clk
0:02:59.1]} 5... Bb4 {[%clk 0:02:53.8]} 6. dxe5 {[%clk 0:02:59.1]} 6... Nxe4
{[%clk 0:02:52.5]} 7. Bd2 {[%clk 0:02:59.2]} 7... Nxd2 {[%clk 0:02:48.8]} 8.
Qxd2 {[%clk 0:02:59.6]} 8... d5 {[%clk 0:02:47.8]} 9. exd6 {[%clk 0:02:59.6]}
9... Qxd6 {[%clk 0:02:46.7]} 10. Qxd6 {[%clk 0:02:59.4]} 10... Bxd6 {[%clk
0:02:45.8]} 11. O-O-O {[%clk 0:02:59.5]} 11... a6 {[%clk 0:02:39.1]} 12. Bc4
{[%clk 0:02:57.1]} 12... O-O {[%clk 0:02:38.3]} 13. h3 {[%clk 0:02:55.8]} 13...
Bf5 {[%clk 0:02:36.7]} 14. g4 {[%clk 0:02:55.1]} 14... Bg6 {[%clk 0:02:35.1]}
15. Kb1 {[%clk 0:02:55.3]} 15... Rfe8 {[%clk 0:02:28.9]} 16. Bd5 {[%clk
0:02:51.6]} 16... Rab8 {[%clk 0:02:26.8]} 17. f3 {[%clk 0:02:46.6]} 17... Re3
{[%clk 0:02:17.8]} 18. Be4 {[%clk 0:02:39.2]} 18... Bxe4 {[%clk 0:02:09.5]} 19.
Nxe4 {[%clk 0:02:39.3]} 19... Rd8 {[%clk 0:02:07.4]} 20. Rhf1 {[%clk 0:02:34.5]}
20... Be7 {[%clk 0:02:05.3]} 21. Rxd8+ {[%clk 0:02:29.8]} 21... Bxd8 {[%clk
0:02:04.8]} 22. Kc1 {[%clk 0:02:30]} 22... Re2 {[%clk 0:02:01.4]} 23. Rd1 {[%clk
0:02:16.1]} 23... Bh4 {[%clk 0:01:56.8]} 24. Rd7 {[%clk 0:02:04.1]} 24... h6
{[%clk 0:01:47.2]} 25. Rxc7 {[%clk 0:02:04.1]} 25... b5 {[%clk 0:01:46.4]} 26.
Ra7 {[%clk 0:02:00.1]} 26... Rh2 {[%clk 0:01:44.3]} 27. Rxa6 {[%clk 0:02:00.4]}
27... Rxh3 {[%clk 0:01:44.2]} 28. Ra3 {[%clk 0:01:56.3]} 28... h5 {[%clk
0:01:38.9]} 29. gxh5 {[%clk 0:01:55.7]} 29... f5 {[%clk 0:01:38.8]} 30. Nd6
{[%clk 0:01:50.7]} 30... Be7 {[%clk 0:01:32.9]} 31. Ra8+ {[%clk 0:01:49.4]}
31... Kh7 {[%clk 0:01:32.2]} 32. Nxf5 {[%clk 0:01:49.9]} 32... Bg5+ {[%clk
0:01:29.4]} 33. Kd1 {[%clk 0:01:49.9]} 33... Rxf3 {[%clk 0:01:29.2]} 34. Nd4
{[%clk 0:01:43.3]} 34... Rf2 {[%clk 0:01:28.4]} 35. Nxb5 {[%clk 0:01:23.9]}
35... Rd2+ {[%clk 0:01:27.7]} 36. Ke1 {[%clk 0:01:24.2]} 36... Rxc2 {[%clk
0:01:27.9]} 37. b3 {[%clk 0:01:23.1]} 37... Kh6 {[%clk 0:01:19.3]} 38. Rh8#
{[%clk 0:01:17]} 1-0

[Event "Early-Titled-Tuesday-Blitz-February-20-2024"]
[Site "Chess.com"]
[Date "2024.02.20"]
[Round "2"]
[White "mertfelin"]
[Black "AlexanderKing"]
[Result "1-0"]
[WhiteElo "2352"]
[BlackElo "2645"]
[TimeControl "180+1"]
[EndTime "8:15:34 PST"]
[Termination "mertfelin won by resignation"]

1. e4 {[%clk 0:03:00.4]} 1... e6 {[%clk 0:03:00.9]} 2. d4 {[%clk 0:03:00.8]}
2... d5 {[%clk 0:03:01.2]} 3. Nd2 {[%clk 0:03:00.4]} 3... c5 {[%clk 0:03:00.6]}
4. Ngf3 {[%clk 0:02:59.6]} 4... Nc6 {[%clk 0:03:00.2]} 5. exd5 {[%clk
0:02:59.6]} 5... exd5 {[%clk 0:03:01.1]} 6. Bb5 {[%clk 0:02:59.9]} 6... Qe7+
{[%clk 0:03:01.7]} 7. Qe2 {[%clk 0:03:00.1]} 7... Qxe2+ {[%clk 0:03:01.6]} 8.
Bxe2 {[%clk 0:03:00.8]} 8... Bf5 {[%clk 0:03:00.8]} 9. c3 {[%clk 0:02:59.4]}
9... cxd4 {[%clk 0:03:01]} 10. cxd4 {[%clk 0:02:59]} 10... Nf6 {[%clk
0:02:45.9]} 11. O-O {[%clk 0:02:52.4]} 11... Bd6 {[%clk 0:02:43.5]} 12. Nb3
{[%clk 0:02:51]} 12... O-O {[%clk 0:02:41.7]} 13. Bg5 {[%clk 0:02:50.8]} 13...
Ne4 {[%clk 0:02:41.1]} 14. Be3 {[%clk 0:02:50.4]} 14... Rac8 {[%clk 0:02:38.4]}
15. Rac1 {[%clk 0:02:49.3]} 15... f6 {[%clk 0:02:03.9]} 16. a3 {[%clk
0:02:46.2]} 16... g5 {[%clk 0:01:59.6]} 17. Rfe1 {[%clk 0:02:41.8]} 17... Rfe8
{[%clk 0:01:50.3]} 18. Nfd2 {[%clk 0:02:36.6]} 18... Nxd2 {[%clk 0:01:46]} 19.
Nxd2 {[%clk 0:02:36.7]} 19... Nxd4 {[%clk 0:01:29.6]} 20. Bxd4 {[%clk
0:02:26.7]} 20... Rxc1 {[%clk 0:01:28.7]} 21. Rxc1 {[%clk 0:02:27.6]} 21... Rxe2
{[%clk 0:01:29.1]} 22. Nf3 {[%clk 0:02:28.2]} 22... Be4 {[%clk 0:01:17.6]} 23.
Bxf6 {[%clk 0:02:23.8]} 23... g4 {[%clk 0:00:52.2]} 24. Nd4 {[%clk 0:01:59.1]}
24... Rxb2 {[%clk 0:00:36]} 25. Nf5 {[%clk 0:01:43.4]} 25... Rb6 {[%clk
0:00:24.3]} 26. Nh6+ {[%clk 0:01:39.3]} 1-0

[Event "Early-Titled-Tuesday-Blitz-February-20-2024"]
[Site "Chess.com"]
[Date "2024.02.20"]
[Round "2"]
[White "ajedrez-facil"]
[Black "arenal72"]
[Result "0-1"]
[WhiteElo "2228"]
[BlackElo "2574"]
[TimeControl "180+1"]
[EndTime "8:15:39 PST"]
[Termination "arenal72 won by resignation"]

1. e4 {[%clk 0:02:43.7]} 1... d6 {[%clk 0:02:56.9]} 2. d4 {[%clk 0:02:43]} 2...
Nf6 {[%clk 0:02:56.6]} 3. Nc3 {[%clk 0:02:43.7]} 3... e5 {[%clk 0:02:56.8]} 4.
dxe5 {[%clk 0:02:43.6]} 4... dxe5 {[%clk 0:02:57.7]} 5. Qxd8+ {[%clk 0:02:43]}
5... Kxd8 {[%clk 0:02:58.6]} 6. Bc4 {[%clk 0:02:42.4]} 6... Ke8 {[%clk
0:02:58.4]} 7. Be3 {[%clk 0:02:40.2]} 7... Bd6 {[%clk 0:02:56.6]} 8. Nf3 {[%clk
0:02:38]} 8... Ke7 {[%clk 0:02:54.9]} 9. Nd5+ {[%clk 0:02:36.8]} 9... Nxd5
{[%clk 0:02:54]} 10. Bxd5 {[%clk 0:02:37.7]} 10... c6 {[%clk 0:02:53.7]} 11. Bb3
{[%clk 0:02:37.6]} 11... Nd7 {[%clk 0:02:50]} 12. Ke2 {[%clk 0:02:31.4]} 12...
f6 {[%clk 0:02:48.2]} 13. Rhd1 {[%clk 0:02:31.6]} 13... b6 {[%clk 0:02:41.4]}
14. Nh4 {[%clk 0:02:28.7]} 14... g6 {[%clk 0:02:37.2]} 15. g3 {[%clk 0:02:24.5]}
15... Nc5 {[%clk 0:02:25.8]} 16. Rd2 {[%clk 0:02:18.2]} 16... Nxe4 {[%clk
0:02:18.5]} 17. Rd3 {[%clk 0:02:07.2]} 17... Ba6 {[%clk 0:02:14.5]} 18. c4
{[%clk 0:02:07.1]} 18... Bc5 {[%clk 0:02:07.1]} 19. f3 {[%clk 0:02:03.5]} 19...
Bxe3 {[%clk 0:02:01.4]} 20. Kxe3 {[%clk 0:02:03.1]} 20... Nc5 {[%clk 0:02:01.1]}
21. Rd2 {[%clk 0:01:59]} 21... Rad8 {[%clk 0:01:59.9]} 22. Rad1 {[%clk 0:01:58]}
22... Rxd2 {[%clk 0:01:59.2]} 23. Rxd2 {[%clk 0:01:58.2]} 23... Rd8 {[%clk
0:01:59.7]} 24. Rxd8 {[%clk 0:01:57.5]} 24... Kxd8 {[%clk 0:02:00.6]} 25. f4
{[%clk 0:01:57.8]} 25... exf4+ {[%clk 0:01:59.5]} 26. gxf4 {[%clk 0:01:58.7]}
26... Ke7 {[%clk 0:01:58.1]} 27. Nf3 {[%clk 0:01:58.4]} 27... Kd6 {[%clk
0:01:54.7]} 28. h4 {[%clk 0:01:55.5]} 28... Bc8 {[%clk 0:01:45]} 29. Nd2 {[%clk
0:01:48.5]} 29... Bf5 {[%clk 0:01:43.3]} 30. Bd1 {[%clk 0:01:48.2]} 30... Nd3
{[%clk 0:01:37.8]} 31. b3 {[%clk 0:01:43.5]} 31... Nb4 {[%clk 0:01:30.2]} 32. a3
{[%clk 0:01:38]} 32... Nc2+ {[%clk 0:01:29.4]} 33. Bxc2 {[%clk 0:01:38.4]} 33...
Bxc2 {[%clk 0:01:30.3]} 34. b4 {[%clk 0:01:37.1]} 34... c5 {[%clk 0:01:25.3]}
35. Nf3 {[%clk 0:01:30.5]} 35... Ke6 {[%clk 0:01:18.5]} 36. bxc5 {[%clk
0:01:23.3]} 36... bxc5 {[%clk 0:01:17.3]} 37. Nh2 {[%clk 0:01:02.4]} 37... Kf5
{[%clk 0:01:13.4]} 0-1

[Event "Early-Titled-Tuesday-Blitz-February-20-2024"]
[Site "Chess.com"]
[Date "2024.02.20"]
[Round "2"]
[White "Jospem"]
[Black "yaguigor"]
[Result "1-0"]
[WhiteElo "3078"]
[BlackElo "2671"]
[TimeControl "180+1"]
[EndTime "8:15:45 PST"]
[Termination "Jospem won on time"]

1. e4 {[%clk 0:03:00.9]} 1... c5 {[%clk 0:02:59]} 2. Nf3 {[%clk 0:03:00.6]} 2...
Nc6 {[%clk 0:02:58.7]} 3. c3 {[%clk 0:02:59.9]} 3... Nf6 {[%clk 0:02:58]} 4. Bd3
{[%clk 0:03:00.6]} 4... e5 {[%clk 0:02:47.5]} 5. Bc2 {[%clk 0:03:00.1]} 5... d5
{[%clk 0:02:47.2]} 6. exd5 {[%clk 0:03:01]} 6... Qxd5 {[%clk 0:02:45.5]} 7. Qe2
{[%clk 0:03:01.2]} 7... Bg4 {[%clk 0:02:36.9]} 8. d3 {[%clk 0:03:00.1]} 8...
Bxf3 {[%clk 0:02:26.3]} 9. gxf3 {[%clk 0:03:01]} 9... g6 {[%clk 0:02:15.7]} 10.
Na3 {[%clk 0:03:00]} 10... Bg7 {[%clk 0:02:14.4]} 11. h4 {[%clk 0:03:00]} 11...
Nh5 {[%clk 0:02:07.4]} 12. Be3 {[%clk 0:02:58.9]} 12... O-O {[%clk 0:02:06.1]}
13. O-O-O {[%clk 0:02:52.1]} 13... Qxa2 {[%clk 0:01:44.2]} 14. Bxc5 {[%clk
0:02:52.1]} 14... Rfd8 {[%clk 0:01:38.3]} 15. Qe4 {[%clk 0:02:47.3]} 15... Qd5
{[%clk 0:01:29.3]} 16. Qxd5 {[%clk 0:02:46.6]} 16... Rxd5 {[%clk 0:01:29]} 17.
Be3 {[%clk 0:02:47.5]} 17... Rad8 {[%clk 0:01:23.9]} 18. Rhg1 {[%clk 0:02:42.7]}
18... h6 {[%clk 0:01:17.2]} 19. Bb3 {[%clk 0:02:38.9]} 19... Rxd3 {[%clk
0:01:15.7]} 20. Rxd3 {[%clk 0:02:39.3]} 20... Rxd3 {[%clk 0:01:15]} 21. Rxg6
{[%clk 0:02:39.9]} 21... Nf4 {[%clk 0:00:50.3]} 22. Rg4 {[%clk 0:02:33.9]} 22...
Nd4 {[%clk 0:00:31.8]} 23. Bc4 {[%clk 0:02:28.3]} 23... Nde2+ {[%clk 0:00:19.2]}
24. Kc2 {[%clk 0:02:23.6]} 24... Rd8 {[%clk 0:00:19.3]} 25. Bxa7 {[%clk
0:02:11.6]} 25... Rd7 {[%clk 0:00:12.6]} 26. h5 {[%clk 0:02:10.2]} 26... Kh7
{[%clk 0:00:11.1]} 27. Bxe2 {[%clk 0:02:04.2]} 27... Nxe2 {[%clk 0:00:10.2]} 28.
Be3 {[%clk 0:02:04.9]} 28... f5 {[%clk 0:00:09.1]} 29. Rg6 {[%clk 0:02:04.7]}
29... f4 {[%clk 0:00:02.9]} 30. Bd2 {[%clk 0:02:04.7]} 30... Rf7 {[%clk
0:00:01.2]} 31. Kd1 {[%clk 0:02:03.6]} 31... Rf5 {[%clk 0:00:01.3]} 32. Kxe2
{[%clk 0:02:03.7]} 32... Rxh5 {[%clk 0:00:02]} 33. Rg1 {[%clk 0:02:04.5]} 1-0

[Event "Early-Titled-Tuesday-Blitz-February-20-2024"]
[Site "Chess.com"]
[Date "2024.02.20"]
[Round "2"]
[White "mishanick"]
[Black "SaqoChess_Twitch"]
[Result "1-0"]
[WhiteElo "3055"]
[BlackElo "2662"]
[TimeControl "180+1"]
[EndTime "8:15:46 PST"]
[Termination "mishanick won by checkmate"]

1. d4 {[%clk 0:03:00.9]} 1... d5 {[%clk 0:02:59.9]} 2. c4 {[%clk 0:03:01.7]}
2... e6 {[%clk 0:03:00.1]} 3. Nc3 {[%clk 0:03:02.4]} 3... Nf6 {[%clk 0:03:00.4]}
4. Bg5 {[%clk 0:03:02.9]} 4... Be7 {[%clk 0:03:00.7]} 5. e3 {[%clk 0:03:03.4]}
5... O-O {[%clk 0:03:00.8]} 6. Nf3 {[%clk 0:03:03.1]} 6... h6 {[%clk 0:03:00.7]}
7. Bxf6 {[%clk 0:03:01.1]} 7... Bxf6 {[%clk 0:03:00.8]} 8. cxd5 {[%clk
0:03:01.7]} 8... exd5 {[%clk 0:03:01.7]} 9. Qb3 {[%clk 0:03:02.1]} 9... c6
{[%clk 0:02:58.8]} 10. Bd3 {[%clk 0:03:02.7]} 10... Nd7 {[%clk 0:02:56.3]} 11.
O-O {[%clk 0:03:02.3]} 11... Re8 {[%clk 0:02:56.2]} 12. h3 {[%clk 0:03:02.8]}
12... Nf8 {[%clk 0:02:55.2]} 13. Rfe1 {[%clk 0:03:01.6]} 13... Ne6 {[%clk
0:02:55.1]} 14. Nh2 {[%clk 0:03:01]} 14... g6 {[%clk 0:02:43.5]} 15. f4 {[%clk
0:03:00.6]} 15... h5 {[%clk 0:02:38.2]} 16. Nf3 {[%clk 0:03:00.9]} 16... Ng7
{[%clk 0:02:37.8]} 17. Ne5 {[%clk 0:02:58.4]} 17... Bf5 {[%clk 0:02:35.5]} 18.
Bxf5 {[%clk 0:02:50.4]} 18... Nxf5 {[%clk 0:02:36.4]} 19. Qxb7 {[%clk
0:02:50.4]} 19... Bxe5 {[%clk 0:01:58.6]} 20. fxe5 {[%clk 0:02:51.3]} 20... Rb8
{[%clk 0:01:47.1]} 21. Qxc6 {[%clk 0:02:51.2]} 21... Rxb2 {[%clk 0:01:46.9]} 22.
Nxd5 {[%clk 0:02:47.8]} 22... Re6 {[%clk 0:01:15.1]} 23. Nf6+ {[%clk 0:02:40.8]}
23... Kg7 {[%clk 0:01:10.9]} 24. Qe4 {[%clk 0:02:35.3]} 24... Ra6 {[%clk
0:00:33.8]} 25. Rf1 {[%clk 0:02:30]} 25... Raxa2 {[%clk 0:00:28.2]} 26. Rxa2
{[%clk 0:02:28.4]} 26... Rxa2 {[%clk 0:00:29.1]} 27. Rxf5 {[%clk 0:02:21.4]}
27... gxf5 {[%clk 0:00:13.5]} 28. Qxf5 {[%clk 0:02:22.3]} 28... Qh8 {[%clk
0:00:14.1]} 29. Nxh5+ {[%clk 0:02:09.9]} 29... Kg8 {[%clk 0:00:09.8]} 30. Qg4+
{[%clk 0:02:08.1]} 30... Kh7 {[%clk 0:00:07.3]} 31. Nf6+ {[%clk 0:02:08.1]}
31... Kh6 {[%clk 0:00:07.4]} 32. h4 {[%clk 0:02:07.4]} 32... Rxg2+ {[%clk
0:00:01.8]} 33. Kxg2 {[%clk 0:02:07.2]} 33... Qg7 {[%clk 0:00:01.7]} 34. d5
{[%clk 0:02:07]} 34... a5 {[%clk 0:00:01.9]} 35. d6 {[%clk 0:02:07.3]} 35... a4
{[%clk 0:00:02.8]} 36. d7 {[%clk 0:02:07.3]} 36... a3 {[%clk 0:00:03.7]} 37.
d8=Q {[%clk 0:02:07.6]} 37... a2 {[%clk 0:00:04.2]} 38. Qh8+ {[%clk 0:02:06.8]}
38... Qxh8 {[%clk 0:00:04.1]} 39. Qg5# {[%clk 0:02:07.7]} 1-0